bitfinex/quotes_SOLUSD_20241021
["timestamp","ask_amount","ask_price","bid_price","bid_amount"]
[1729491807277,0.6050827,170.87,170.85,1.46388481]
[1729491807457,0.6050827,170.87,170.86,1.46388481]
[1729491807658,15.9250827,170.88,170.86,1.46388481]
[1729491807872,15.9250827,170.88,170.78,23.64656249]
[1729491808063,15.9250827,170.88,170.79,1.46388725]
[1729491808266,15.9250827,170.88,170.8,1.46388725]
[1729491808460,15.9250827,170.88,170.78,23.64656249]
[1729491808461,15.9250827,170.88,170.81,1.46388725]
[1729491808665,15.9250827,170.88,170.82,1.4638881]
[1729491808868,15.9250827,170.88,170.83,1.4638881]
[1729491809065,15.9250827,170.88,170.84,1.4638881]
[1729491809365,15.9250827,170.88,170.85,1.4638881]
[1729491809575,15.9250827,170.88,170.86,1.4638881]
[1729491809878,15.9250827,170.88,170.78,23.64656249]
[1729491810079,15.9250827,170.88,170.79,1.46388993]
[1729491810253,15.9250827,170.88,170.8,1.46388993]
[1729491810580,15.9250827,170.88,170.81,1.46388993]
[1729491810776,15.9250827,170.88,170.82,1.46388993]
[1729491811078,15.9250827,170.88,170.83,1.46388993]
[1729491811272,15.9250827,170.88,170.84,1.46388993]
[1729491811475,15.9250827,170.88,170.85,1.46388993]
[1729491811669,15.9250827,170.88,170.86,1.46388993]
[1729491811974,15.9250827,170.88,170.78,23.64656249]
[1729491811975,6.11109746,170.95,170.85,26.6216]
[1729491812176,23.2789827,171.04,170.88,20.0]
[1729491812354,6.10818103,171.03,170.89,17.911719]
[1729491812558,6.10818103,171.03,170.9,1.46347955]
[1729491813067,6.20818103,171.03,170.91,1.46347955]
[1729491813271,6.20818103,171.03,170.92,1.46347955]
[1729491813455,6.10818103,171.03,170.86,20.1]
[1729491813657,23.3789827,171.04,170.87,9.87114011]
[1729491813857,15.1437,171.0,170.88,1.46322919]
[1729491814066,15.1437,171.0,170.89,1.46322919]
[1729491814278,15.1437,171.0,170.9,1.46322919]
[1729491814575,15.1437,171.0,170.85,6.5216]
[1729491814772,23.776884,170.99,170.86,2.21334737]
[1729491814976,23.776884,170.99,170.87,1.46334737]
[1729491815578,23.776884,170.99,170.88,1.46334737]
[1729491815880,23.776884,170.99,170.85,10.14963593]
[1729491815881,23.776884,170.99,170.89,1.46334737]
[1729491816180,23.776884,170.99,170.9,1.46334737]
[1729491816373,23.776884,170.99,170.85,10.14963593]
[1729491816579,23.776884,170.99,170.86,1.46337166]
[1729491816752,23.776884,170.99,170.85,10.14963593]
[1729491816958,23.776884,170.99,170.86,1.46337117]
[1729491819777,23.776884,170.97,170.86,1.46337117]
[1729491820179,23.776884,170.97,170.85,1.46337117]
[1729491820379,23.776884,170.97,170.86,1.46337117]
[1729491820683,23.776884,170.97,170.87,1.46337117]
[1729491820861,23.776884,170.97,170.85,8.04032853]
[1729491821060,6.1534,170.98,170.86,1.4635209]
[1729491821270,6.1534,170.98,170.87,1.4635209]
[1729491821463,6.1534,170.98,170.84,27.83910381]
[1729491821663,6.1534,170.98,170.85,1.46347382]
[1729491822481,6.1534,170.98,170.86,8.04032853]
[1729491822685,6.1534,170.98,170.87,1.46347382]
[1729491823766,6.1534,170.98,170.88,1.46347382]
[1729491823963,23.776884,170.97,170.84,16.1616]
[1729491824281,23.776884,170.95,170.85,21.16350253]
[1729491824460,23.776884,170.95,170.86,1.46350253]
[1729491824661,23.776884,170.95,170.84,16.1616]
[1729491824980,23.776884,170.95,170.85,1.46352636]
[1729491825482,15.2314,170.96,170.85,9.50385489]
[1729491825660,15.2314,170.96,170.86,1.46352636]
[1729491826378,15.2314,170.96,170.86,9.87143728]
[1729491826572,15.2314,170.96,170.87,1.46352636]
[1729491826775,15.2314,170.96,170.88,1.46352636]
[1729491826985,15.2314,170.96,170.89,1.46352636]
[1729491827182,15.2314,170.96,170.84,16.1616]
[1729491827384,15.2314,170.96,170.85,1.46334184]
[1729491827564,15.2314,170.96,170.85,21.46334184]
[1729491827890,15.2314,170.96,170.86,1.46334184]
[1729491828480,6.1534,170.98,170.86,1.46334184]
[1729491828664,6.1534,170.98,170.86,9.50367037]
[1729491828869,6.1534,170.98,170.87,1.46334184]
[1729491829069,6.1534,170.98,170.85,20.0]
[1729491829070,6.1534,170.98,170.88,1.46334184]
[1729491829283,6.1534,170.98,170.89,1.46334184]
[1729491829489,6.1534,170.98,170.85,20.0]
[1729491829668,6.1534,170.98,170.86,39.7182884]
[1729491829989,6.1534,170.98,170.87,21.16327587]
[1729491830176,6.1534,170.98,170.88,1.46327587]
[1729491830885,6.1534,170.98,170.89,1.46319953]
[1729491831076,6.1534,170.98,170.9,1.46319953]
[1729491831382,6.1534,170.98,170.86,6.4378]
[1729491831584,6.1534,170.98,170.87,1.46324164]
[1729491832285,6.1534,170.98,170.87,21.46324164]
[1729491832498,6.1534,170.98,170.88,1.46324164]
[1729491834578,6.1534,170.98,170.89,1.46322301]
[1729491834778,6.1534,170.98,170.9,1.46322301]
[1729491834984,6.1534,170.98,170.87,20.0]
[1729491835171,6.1534,170.98,170.88,1.46320653]
[1729491836994,6.1534,170.98,170.89,19.7]
[1729491837186,6.1534,170.98,170.9,1.46320653]
[1729491837492,6.1534,170.98,170.89,19.7]
[1729491837797,6.1534,170.98,170.9,1.46317098]
[1729491838182,6.1534,170.98,170.89,19.7]
[1729491838383,6.1534,170.98,170.9,2.92637931]
[1729491838579,6.1534,170.98,170.9,1.46318762]
[1729491838780,10.26742512,171.02,170.91,1.46311604]
[1729491838781,32.09832512,171.02,170.91,1.46311604]
[1729491840687,32.09832512,171.02,170.91,9.50344457]
[1729491840885,32.09832512,171.02,170.92,1.46311604]
[1729491841100,32.09832512,171.02,170.93,1.46292713]
[1729491841278,32.09832512,171.02,170.91,8.04032853]
[1729491841279,0.6050827,171.04,170.92,20.0]
[1729491841598,0.6050827,171.04,170.93,1.46285855]
[1729491842381,0.6050827,171.04,170.94,1.46285855]
[1729491842579,0.6050827,171.04,170.9,21.46318762]
[1729491842778,0.6050827,171.04,170.91,1.46282079]
[1729491843494,0.6050827,171.04,170.91,9.60314932]
[1729491843696,0.6050827,171.04,170.92,9.50314932]
[1729491843895,0.6050827,171.04,170.93,21.46282079]
[1729491844080,0.6050827,171.04,170.94,1.46282079]
[1729491844282,0.6050827,171.04,170.9,5.05355355]
[1729491844476,0.6050827,171.04,170.91,21.46282428]
[1729491844787,0.6050827,171.04,170.92,1.46282428]
[1729491845394,0.6050827,171.04,170.93,1.46282428]
[1729491845601,0.6050827,171.04,170.9,5.05355355]
[1729491845900,0.6050827,171.04,170.91,1.46290897]
[1729491846301,15.1657,171.02,170.92,1.4628909]
[1729491846602,15.1657,171.02,170.93,1.4629069]
[1729491846779,15.1657,171.02,170.9,5.05355355]
[1729491846984,15.1657,171.02,170.91,1.46290789]
[1729491849482,15.1657,171.02,170.91,21.46290789]
[1729491849706,15.1657,171.02,170.92,1.46290789]
[1729491852196,0.6050827,171.04,170.92,1.56290789]
[1729491853487,0.6050827,171.04,170.92,1.66290789]
[1729491853809,0.6050827,171.04,170.92,1.56290789]
[1729491853985,0.6050827,171.04,170.92,1.46290789]
[1729491854181,0.6050827,171.04,170.92,1.56290789]
[1729491854386,0.6050827,171.04,170.92,1.46290789]
[1729491855004,0.6050827,171.04,170.92,1.56290789]
[1729491855211,0.6050827,171.04,170.92,1.46290789]
[1729491855512,0.6050827,171.04,170.91,26.1393]
[1729491855688,0.6050827,171.04,170.92,1.56268543]
[1729491855897,0.6050827,171.04,170.92,1.46268543]
[1729491856190,0.6050827,171.04,170.92,1.56268543]
[1729491857291,0.6050827,171.04,170.93,1.46268543]
[1729491857984,0.1050827,171.04,170.93,1.46268543]
[1729491858191,0.1050827,171.04,170.94,1.46268543]
[1729491858515,0.1050827,171.04,170.95,1.46268543]
[1729491858684,0.1050827,171.04,170.96,1.46268543]
[1729491858893,0.1050827,171.04,170.97,1.46268543]
[1729491859182,0.1050827,171.04,170.92,0.1]
[1729491859387,0.1050827,171.04,170.93,1.46262859]
[1729491859585,0.1050827,171.04,170.94,1.46262859]
[1729491859791,0.1050827,171.04,170.95,1.46262859]
[1729491860014,0.1050827,171.04,170.91,26.1393]
[1729491860015,0.1050827,171.04,170.96,1.46262859]
[1729491860315,0.1050827,171.04,170.97,1.46262859]
[1729491860488,0.1050827,171.04,170.91,26.0393]
[1729491860691,0.1050827,171.04,170.92,1.46273058]
[1729491861391,0.6955409,171.04,170.92,1.46273058]
[1729491862200,0.6955409,171.04,170.92,9.8706415]
[1729491862402,0.6955409,171.04,170.93,1.46273058]
[1729491864211,0.6955409,171.04,170.94,1.46273058]
[1729491864414,0.6955409,171.04,170.95,1.46273058]
[1729491864735,0.6955409,171.04,170.96,1.46273058]
[1729491864895,0.6955409,171.04,170.97,1.46273058]
[1729491865099,0.6955409,171.04,170.91,26.1393]
[1729491865416,0.6955409,171.04,170.92,1.46266411]
[1729491865612,0.6955409,171.04,170.93,1.46266411]
[1729491865813,0.6955409,171.04,170.93,9.87057503]
[1729491866018,0.6955409,171.04,170.94,1.46266411]
[1729491866546,0.6955409,171.04,170.95,1.46266554]
[1729491866730,0.6955409,171.04,170.96,1.46266554]
[1729491866923,0.6955409,171.04,170.97,1.46266554]
[1729491867224,0.6955409,171.04,170.91,26.1393]
[1729491867428,0.6955409,171.04,170.92,1.4626626]
[1729491867609,0.6955409,171.04,170.93,1.4626626]
[1729491867924,0.6955409,171.04,170.94,1.4626626]
[1729491868125,0.6955409,171.04,170.95,1.4626626]
[1729491868423,0.6955409,171.04,170.96,1.4626626]
[1729491868608,0.6955409,171.04,170.97,1.4626626]
[1729491868812,0.6955409,171.04,170.98,1.4626626]
[1729491869004,0.6955409,171.04,170.99,1.4626626]
[1729491869313,0.6955409,171.04,170.92,23.876884]
[1729491869514,0.6955409,171.04,170.93,1.4626053]
[1729491869823,0.6955409,171.04,170.94,1.4626053]
[1729491870127,0.6955409,171.04,170.95,1.4626059]
[1729491870331,0.6955409,171.04,170.96,1.4626059]
[1729491870503,0.6955409,171.04,170.97,1.4626059]
[1729491870708,0.6955409,171.04,170.92,23.876884]
[1729491870709,0.6955409,171.04,170.98,1.4626059]
[1729491870906,0.6955409,171.04,170.99,1.4626059]
[1729491871211,0.6955409,171.04,171.0,1.46259281]
[1729491871412,0.6955409,171.04,170.91,31.28051572]
[1729491871607,0.6955409,171.04,170.92,1.46274858]
[1729491871809,0.6955409,171.04,170.93,1.46274858]
[1729491871810,23.776884,171.01,170.93,1.46274858]
[1729491872014,23.776884,171.01,170.94,1.46274858]
[1729491872207,6.1657,171.02,170.95,1.46274858]
[1729491872423,6.1657,171.02,170.96,1.46274858]
[1729491872620,6.1657,171.02,170.97,1.46274858]
[1729491872827,23.776884,171.01,170.89,6.10579851]
[1729491873012,6.1657,171.02,170.89,6.10579851]
[1729491873013,23.776884,170.99,170.9,1.46284912]
[1729491873337,23.776884,170.99,170.91,1.46284912]
[1729491873534,23.776884,170.99,170.92,1.46284912]
[1729491873713,23.776884,170.99,170.93,1.46284912]
[1729491873915,23.776884,170.99,170.94,1.46284912]
[1729491874242,23.776884,170.99,170.95,1.46284912]
[1729491874526,23.776884,170.99,170.87,4.74295443]
[1729491874527,15.8278,171.0,170.87,24.74295443]
[1729491874730,15.8278,171.0,170.88,1.46295851]
[1729491874911,15.8278,171.0,170.89,1.46295851]
[1729491875230,15.8278,171.0,170.9,1.46295851]
[1729491875411,15.8278,171.0,170.91,1.46295851]
[1729491875616,15.8278,171.0,170.92,1.46295851]
[1729491875812,15.8278,171.0,170.93,1.46295851]
[1729491876015,15.8278,171.0,170.94,1.46295851]
[1729491876230,15.8278,171.0,170.87,24.74295443]
[1729491876231,15.8278,171.0,170.95,1.46295851]
[1729491876537,15.8278,171.0,170.96,1.46295851]
[1729491876736,15.8278,171.0,170.87,24.74295443]
[1729491876917,15.8278,171.0,170.88,1.46294482]
[1729491877122,15.8278,171.0,170.89,1.46294482]
[1729491877319,15.8278,171.0,170.9,1.46294482]
[1729491877525,15.8278,171.0,170.91,1.46294482]
[1729491877718,15.8278,171.0,170.92,1.46294482]
[1729491878035,15.8278,171.0,170.93,1.46294482]
[1729491878226,15.8278,171.0,170.94,1.46294482]
[1729491878427,23.776884,170.99,170.95,1.46294482]
[1729491878731,23.776884,170.99,170.87,1.01669764]
[1729491878931,15.8278,171.0,170.88,1.463054]
[1729491879119,15.8278,171.0,170.89,1.463054]
[1729491879311,15.8278,171.0,170.9,1.463054]
[1729491879508,15.8278,171.0,170.91,1.463054]
[1729491879738,15.8278,171.0,170.92,1.463054]
[1729491880031,15.8278,171.0,170.93,1.463054]
[1729491880238,15.8278,171.0,170.94,1.463054]
[1729491880533,15.8278,171.0,170.95,1.463054]
[1729491880737,15.8278,171.0,170.87,1.01669764]
[1729491880921,15.8278,171.0,170.88,1.46301024]
[1729491881122,15.8278,171.0,170.89,1.46301024]
[1729491881320,23.776884,170.99,170.9,1.46301024]
[1729491881634,23.776884,170.97,170.91,1.46301024]
[1729491881837,23.776884,170.97,170.92,1.46301024]
[1729491882020,23.776884,170.97,170.93,1.46301024]
[1729491882337,23.776884,170.97,170.84,20.74794917]
[1729491882638,15.8106,170.96,170.85,1.46327582]
[1729491882936,15.8106,170.96,170.86,1.46327582]
[1729491883136,15.8106,170.96,170.87,1.46327582]
[1729491883319,23.776884,170.95,170.88,1.46327582]
[1729491883517,6.3249,170.94,170.89,1.46327582]
[1729491883724,15.2156,170.92,170.81,1.01747812]
[1729491883925,15.2156,170.92,170.82,1.46354601]
[1729491884130,15.2156,170.92,170.83,1.46354601]
[1729491884333,15.2156,170.92,170.84,1.46354601]
[1729491884533,15.2156,170.92,170.85,1.46354601]
[1729491884726,15.2156,170.92,170.86,1.46354601]
[1729491884932,15.2156,170.92,170.87,1.46354601]
[1729491885129,15.2156,170.92,170.88,1.46354601]
[1729491885437,15.2156,170.92,170.89,1.46354601]
[1729491885639,35.15,170.91,170.79,15.5434]
[1729491885822,15.2156,170.92,170.8,1.46356497]
[1729491886022,15.2156,170.92,170.81,1.46356497]
[1729491886220,15.2156,170.92,170.82,1.46356497]
[1729491886434,15.2156,170.92,170.83,1.46356497]
[1729491886741,23.776884,170.91,170.84,1.46356497]
[1729491886936,23.776884,170.91,170.85,1.46356497]
[1729491887122,15.2156,170.92,170.86,1.46356497]
[1729491887323,15.2156,170.92,170.87,1.46356497]
[1729491887513,15.2156,170.92,170.88,1.46356497]
[1729491887720,15.2156,170.92,170.79,15.5434]
[1729491888025,15.2156,170.92,170.8,1.46359912]
[1729491888335,23.776884,170.91,170.81,1.46359912]
[1729491888533,23.776884,170.91,170.79,15.5434]
[1729491888534,23.776884,170.91,170.82,1.46359912]
[1729491888742,23.776884,170.91,170.83,1.46374241]
[1729491889054,23.776884,170.91,170.84,1.46374241]
[1729491889224,23.776884,170.91,170.85,1.46374241]
[1729491889536,23.776884,170.91,170.86,1.46374241]
[1729491889718,23.776884,170.91,170.79,15.5434]
[1729491889917,23.776884,170.91,170.8,1.46374713]
[1729491890142,23.776884,170.91,170.81,1.46374713]
[1729491890336,15.2156,170.92,170.82,1.46374713]
[1729491890532,15.2156,170.92,170.83,1.46374713]
[1729491890734,15.2156,170.92,170.79,15.5434]
[1729491890735,15.2156,170.92,170.84,1.46374713]
[1729491890936,15.2156,170.92,170.85,1.46374713]
[1729491891243,15.2156,170.92,170.79,15.5434]
[1729491891537,15.2156,170.92,170.8,1.46373216]
[1729491891737,15.2156,170.92,170.81,1.46373216]
[1729491891935,15.2156,170.92,170.82,1.46373216]
[1729491892136,15.2156,170.92,170.83,1.46372909]
[1729491892346,30.155184,170.91,170.84,1.46372909]
[1729491892544,30.155184,170.91,170.78,1.01761574]
[1729491892727,21.6657,170.9,170.79,1.46378812]
[1729491893043,23.776884,170.89,170.8,1.46378812]
[1729491893236,23.776884,170.89,170.81,1.46378812]
[1729491893423,23.776884,170.89,170.82,1.46378812]
[1729491893629,23.776884,170.89,170.75,1.01793295]
[1729491893826,15.4983,170.87,170.76,1.46395241]
[1729491894031,23.776884,170.86,170.77,1.46395241]
[1729491894353,23.776884,170.86,170.78,1.46395241]
[1729491894526,23.776884,170.86,170.72,8.45518035]
[1729491894527,23.776884,170.86,170.79,1.46395241]
[1729491894731,29.629684,170.86,170.72,8.45518035]
[1729491894926,29.629684,170.86,170.73,1.46420467]
[1729491895227,29.629684,170.86,170.74,1.46420467]
[1729491895423,29.629684,170.86,170.75,1.46420467]
[1729491895629,29.629684,170.86,170.76,1.46420467]
[1729491895824,23.776884,170.84,170.77,1.46420467]
[1729491896047,23.776884,170.84,170.78,1.46420467]
[1729491896230,23.776884,170.84,170.72,8.45518035]
[1729491896426,23.776884,170.84,170.73,1.46422956]
[1729491897658,23.776884,170.84,170.74,1.46418137]
[1729491897947,23.776884,170.84,170.75,1.46418137]
[1729491898150,23.776884,170.84,170.76,1.46418137]
[1729491898351,23.776884,170.84,170.77,1.46418137]
[1729491898524,15.4983,170.87,170.77,7.08696647]
[1729491898731,15.4983,170.87,170.78,1.46410711]
[1729491899339,15.4983,170.87,170.78,8.55107358]
[1729491899648,15.4983,170.87,170.79,1.46410711]
[1729491899957,15.4983,170.87,170.78,7.08696647]
[1729491900147,15.4983,170.87,170.79,1.46400548]
[1729491900450,15.4983,170.87,170.79,8.55097195]
[1729491900648,15.2922,170.91,170.8,8.55081173]
[1729491900852,15.2922,170.91,170.81,1.46384526]
[1729491901033,15.2922,170.91,170.81,8.55081173]
[1729491901351,15.2922,170.91,170.82,8.55081173]
[1729491901555,15.2922,170.91,170.82,7.08696647]
[1729491901848,15.2922,170.91,170.77,15.8913]
[1729491902059,15.2922,170.91,170.78,1.46377003]
[1729491902257,15.2922,170.91,170.77,15.8913]
[1729491902554,15.2922,170.91,170.78,21.4637696]
[1729491902726,6.236,170.92,170.79,1.4637696]
[1729491902932,6.236,170.92,170.8,7.08696647]
[1729491903142,6.236,170.92,170.81,1.4637696]
[1729491903451,15.227,170.95,170.81,1.4637696]
[1729491903650,15.227,170.95,170.83,20.0]
[1729491903859,15.227,170.95,170.84,1.4637696]
[1729491904156,6.3464,170.96,170.85,35.6344]
[1729491904365,6.3464,170.96,170.86,1.4637696]
[1729491904664,21.5734,171.0,170.86,1.4637696]
[1729491905034,62.6714,171.0,170.86,1.4637696]
[1729491905343,23.776884,170.99,170.86,21.1637696]
[1729491905664,23.776884,170.99,170.87,1.46329788]
[1729491905833,23.776884,170.97,170.87,1.46329788]
[1729491906035,23.776884,170.99,170.87,21.46329788]
[1729491906339,21.5734,171.0,170.88,1.46329264]
[1729491906948,21.5734,171.0,170.86,20.0]
[1729491906949,21.5734,171.0,170.89,1.46329264]
[1729491907259,21.5734,171.0,170.86,20.0]
[1729491907438,21.5734,171.0,170.87,1.46310395]
[1729491908048,23.776884,170.99,170.87,1.46310395]
[1729491908731,0.1,170.98,170.87,1.46310395]
[1729491908931,0.1,170.97,170.81,15.2162]
[1729491909151,23.776884,170.94,170.82,19.71]
[1729491909331,23.776884,170.94,170.83,1.4634953]
[1729491910454,23.776884,170.92,170.83,1.4634953]
[1729491910634,23.776884,170.92,170.77,16.5696]
[1729491910836,23.776884,170.92,170.79,19.71]
[1729491911045,23.776884,170.92,170.8,1.46365153]
[1729491911365,23.776884,170.92,170.81,1.46365153]
[1729491911540,23.776884,170.92,170.82,1.46365153]
[1729491911734,23.776884,170.92,170.77,16.5696]
[1729491912058,23.776884,170.92,170.78,21.46370009]
[1729491912261,23.776884,170.92,170.79,1.46370009]
[1729491917432,23.776884,170.92,170.8,20.0]
[1729491917631,23.776884,170.92,170.81,1.46370009]
[1729491918557,6.6594,170.93,170.81,1.46370009]
[1729491918749,6.6594,170.93,170.83,20.0]
[1729491918955,16.1751,170.95,170.85,36.5075]
[1729491919143,16.1751,170.95,170.86,1.46370009]
[1729491921263,23.776884,170.96,170.86,1.46370009]
[1729491921637,15.891,170.99,170.87,19.7]
[1729491921856,15.891,170.99,170.88,21.46370009]
[1729491922037,15.891,170.99,170.89,1.46370009]
[1729491923363,15.891,170.99,170.9,1.46299225]
[1729491923660,15.891,170.99,170.91,1.46299225]
[1729491923850,15.891,170.99,170.92,1.46299225]
[1729491924050,15.891,170.99,170.88,20.0]
[1729491924359,15.891,170.99,170.89,1.46297097]
[1729491930468,15.891,170.99,170.88,20.0]
[1729491931177,15.891,170.99,170.89,1.46295831]
[1729491934469,15.891,170.99,170.9,1.4629519]
[1729491934658,15.891,170.99,170.91,1.4629519]
[1729491934850,15.891,170.99,170.92,1.4629519]
[1729491935057,15.891,170.99,170.93,1.4629519]
[1729491935258,15.891,170.99,170.88,20.0]
[1729491935457,15.891,170.99,170.89,1.46295753]
[1729491938871,23.776884,170.98,170.89,1.46295753]
[1729491946586,23.776884,170.98,170.89,1.46302643]
[1729491950571,23.776884,170.98,170.9,1.46302643]
[1729491950771,23.776884,170.98,170.91,1.46302643]
[1729491950993,23.776884,170.98,170.86,23.60243452]
[1729491951171,23.776884,170.98,170.87,21.46311384]
[1729491951377,23.776884,170.98,170.88,1.46311384]
[1729491952490,23.776884,170.98,170.87,20.0]
[1729491952491,23.776884,170.98,170.89,1.46310517]
[1729491952688,23.776884,170.98,170.9,1.46310517]
[1729491952888,23.776884,170.98,170.87,20.0]
[1729491953080,23.776884,170.98,170.88,1.46321687]
[1729491954605,23.776884,170.98,170.89,1.46321687]
[1729491954770,23.776884,170.98,170.9,1.46321687]
[1729491954970,23.776884,170.98,170.91,1.46321687]
[1729491955175,23.776884,170.98,170.92,1.46321687]
[1729491955375,23.776884,170.98,170.86,20.0]
[1729491955676,23.776884,170.98,170.87,1.46310457]
[1729491955890,23.776884,170.98,170.86,20.0]
[1729491956084,23.776884,170.98,170.87,1.46310407]
[1729491956283,23.776884,170.98,170.88,1.46310407]
[1729491956487,23.776884,170.98,170.89,1.46310407]
[1729491956692,23.776884,170.98,170.9,1.46310407]
[1729491956891,23.776884,170.98,170.91,1.46310407]
[1729491957097,23.776884,170.98,170.92,1.46310407]
[1729491957398,23.776884,170.98,170.93,1.46310407]
[1729491957577,23.776884,170.98,170.94,1.46310407]
[1729491957778,23.776884,170.98,170.86,20.0]
[1729491957979,23.776884,170.98,170.87,1.46307651]
[1729491958288,23.776884,170.98,170.88,1.46307651]
[1729491958477,23.776884,170.98,170.89,1.46307651]
[1729491958676,23.776884,170.98,170.9,1.46307651]
[1729491958906,23.776884,170.98,170.91,1.46307651]
[1729491959087,23.776884,170.98,170.92,1.46307651]
[1729491959410,23.776884,170.98,170.93,1.46307651]
[1729491959575,23.776884,170.98,170.93,1.46309496]
[1729491959781,23.776884,170.98,170.94,1.46309496]
[1729491959981,23.776884,170.98,170.86,20.0]
[1729491960181,23.776884,170.98,170.87,1.46310465]
[1729491960488,23.776884,170.98,170.88,1.46310465]
[1729491960692,23.776884,170.98,170.89,1.46310465]
[1729491960903,23.776884,170.98,170.9,1.46310465]
[1729491961205,23.776884,170.98,170.91,1.46310465]
[1729491961406,23.776884,170.98,170.92,1.46310465]
[1729491961608,15.891,170.99,170.93,1.46310465]
[1729491961779,15.891,170.99,170.94,1.46310465]
[1729491961987,15.891,170.99,170.95,1.46310465]
[1729491962305,15.891,170.99,170.96,1.46310465]
[1729491962481,15.891,170.99,170.97,1.46310465]
[1729491962686,15.891,170.99,170.88,20.0]
[1729491962897,15.891,170.99,170.89,1.46295628]
[1729491963203,15.891,170.99,170.9,1.46295628]
[1729491963401,15.891,170.99,170.91,1.46295628]
[1729491963597,15.891,170.99,170.92,1.46295628]
[1729491963907,15.891,170.99,170.93,1.46295628]
[1729491964126,15.891,170.99,170.94,1.46295628]
[1729491964408,15.891,170.99,170.95,1.46295628]
[1729491964606,15.891,170.99,170.96,1.46295628]
[1729491964903,15.891,170.99,170.97,1.46295628]
[1729491965087,39.667884,170.99,170.98,1.46295628]
[1729491965411,39.667884,170.99,170.98,1.46280672]
[1729491965591,39.667884,170.99,170.87,1.46280672]
[1729491965792,39.667884,170.99,170.88,1.46280672]
[1729491966005,39.667884,170.99,170.89,1.46280672]
[1729491966198,39.667884,170.99,170.9,1.46280672]
[1729491966395,39.667884,170.99,170.91,1.46280672]
[1729491966601,39.667884,170.99,170.92,1.46280672]
[1729491966814,39.667884,170.99,170.93,1.46280672]
[1729491967013,39.667884,170.99,170.94,1.46280672]
[1729491967311,39.667884,170.99,170.95,1.46280672]
[1729491967497,39.667884,170.99,170.96,1.46280672]
[1729491967691,39.667884,170.99,170.97,1.46280672]
[1729491967892,39.667884,170.99,170.86,26.1036524]
[1729491968098,39.667884,170.99,170.87,1.46288195]
[1729491968302,39.667884,170.99,170.88,1.46288195]
[1729491968615,23.776884,170.98,170.89,1.46288195]
[1729491968802,23.776884,170.98,170.9,1.46288195]
[1729491969001,23.776884,170.98,170.91,1.46297393]
[1729491969211,23.776884,170.98,170.92,1.46297393]
[1729491969524,23.776884,170.98,170.93,1.46297393]
[1729491969812,23.776884,170.98,170.94,1.46297393]
[1729491970009,23.776884,170.98,170.95,1.46297393]
[1729491970213,23.776884,170.98,170.96,1.46297393]
[1729491970409,23.776884,170.98,170.86,26.1036524]
[1729491970592,23.776884,170.98,170.87,1.46301552]
[1729491970891,23.776884,170.98,170.88,1.46301552]
[1729491971088,23.776884,170.98,170.89,1.46301552]
[1729491971307,23.776884,170.98,170.9,1.46301552]
[1729491971510,23.776884,170.98,170.91,1.46301552]
[1729491971820,23.776884,170.98,170.92,1.46301552]
[1729491972117,23.776884,170.98,170.93,1.46301552]
[1729491972303,23.776884,170.98,170.94,1.46301552]
[1729491972508,23.776884,170.98,170.86,6.1036524]
[1729491972813,23.776884,170.98,170.87,1.46301158]
[1729491973000,23.776884,170.98,170.88,1.46301158]
[1729491973203,23.776884,170.98,170.89,1.46301158]
[1729491973401,23.776884,170.98,170.9,1.46301158]
[1729491973603,23.776884,170.98,170.91,1.46301158]
[1729491973800,23.776884,170.98,170.92,1.46301158]
[1729491973996,23.776884,170.98,170.93,1.46301158]
[1729491974194,6.6325,170.97,170.94,1.46301158]
[1729491974407,6.6325,170.97,170.83,1.01702677]
[1729491974408,74.491584,170.96,170.83,1.01702677]
[1729491974699,23.776884,170.94,170.8,15.8554]
[1729491974902,23.776884,170.94,170.8,16.8729634]
[1729491975310,23.776884,170.94,170.8,15.8554]
[1729491975511,23.776884,170.92,170.8,3.64979359]
[1729491975714,50.7147,170.93,170.77,1.01760123]
[1729491975715,23.776884,170.9,170.77,1.01760123]
[1729491975918,23.776884,170.9,170.76,21.96627738]
[1729491976125,23.776884,170.88,170.76,15.8554]
[1729491976422,23.776884,170.88,170.74,8.29775581]
[1729491976729,23.776884,170.88,170.74,11.88719502]
[1729491977924,23.776884,170.86,170.74,11.88719502]
[1729491978300,23.776884,170.86,170.75,20.0]
[1729491983425,6.5134,170.85,170.74,11.88719502]